fUSD/lending_fUSD_20250607
["ID","MTS","AMOUNT","RATE_DAILY","PERIOD"]
[364828737,1749263441031,-1584.79161413,0.00026889,2]
[364828739,1749263441041,-500.0,0.00026889,2]
[364828741,1749263441051,-1584.79161413,0.00026889,2]
[364828743,1749263441060,-500.0,0.00026889,2]
[364828745,1749263441070,-1584.79161413,0.00026889,2]
[364828747,1749263441079,-500.0,0.00026889,2]
[364828749,1749263441088,-1584.79161413,0.00026889,2]
[364828750,1749263441098,-1584.79161413,0.00026889,2]
[364828752,1749263441107,-500.0,0.00026889,2]
[364828754,1749263441116,-1584.79161413,0.00026889,2]
[364828756,1749263441126,-500.0,0.00026889,2]
[364828758,1749263441136,-1584.79161413,0.00026889,2]
[364828760,1749263441145,-500.0,0.00026889,2]
[364828762,1749263441154,-1584.79161413,0.00026889,2]
[364828764,1749263441164,-1584.79161413,0.00026889,2]
[364828766,1749263441174,-494.51489517,0.00026889,2]
[364828768,1749263441183,-1584.79161413,0.00026889,2]
[364828770,1749263441193,-1584.79161413,0.00026889,2]
[364828772,1749263441203,-500.0,0.00026889,2]
[364828774,1749263441212,-1584.79161413,0.00026889,2]
[364828776,1749263441222,-1584.79161413,0.00026889,2]
[364828778,1749263441231,-1584.79161413,0.00026889,2]
[364828780,1749263441240,-500.0,0.00026889,2]
[364828782,1749263441250,-1584.79161413,0.00026889,2]
[364828784,1749263441259,-500.0,0.00026889,2]
[364828786,1749263441268,-1584.79161413,0.00026889,2]
[364828788,1749263441277,-1584.79161413,0.00026889,2]
[364828790,1749263441288,-500.0,0.00026889,2]
[364828792,1749263441297,-1584.79161413,0.00026889,2]
[364828794,1749263441307,-1584.79161413,0.00026889,2]
[364828796,1749263441317,-1584.79161413,0.00026889,2]
[364828798,1749263441327,-1584.79161413,0.00026889,2]
[364828800,1749263441337,-500.0,0.00026889,2]
[364828802,1749263441347,-1584.79161413,0.00026889,2]
[364828804,1749263441357,-1584.79161413,0.00026889,2]
[364828806,1749263441367,-1584.79161413,0.00026889,2]
[364828808,1749263441378,-1584.79161413,0.00026889,2]
[364828810,1749263441389,-1584.79161413,0.00026889,2]
[364828812,1749263441398,-1584.79161413,0.00026889,2]
[364828814,1749263441409,-1584.79161413,0.00026889,2]
[364828816,1749263441419,-1584.79161413,0.00026889,2]
[364828818,1749263441428,-1584.79161413,0.00026889,2]
[364828820,1749263441437,-1584.79161413,0.00026889,2]
[364828822,1749263441449,-1584.79161413,0.00026889,2]
[364828824,1749263441459,-1584.79161413,0.00026889,2]
[364828826,1749263441468,-1584.79161413,0.00026889,2]
[364828828,1749263441478,-1584.79161413,0.00026889,2]
[364828830,1749263441488,-1584.79161413,0.00026889,2]
[364828832,1749263441498,-1584.79161413,0.00026889,2]
[364828834,1749263441507,-1584.79161413,0.00026889,2]
[364828836,1749263441517,-1584.79161413,0.00026889,2]
[364828838,1749263441526,-1584.79161413,0.00026889,2]
[364828840,1749263441536,-1584.79161413,0.00026889,2]
[364828842,1749263441546,-1584.79161413,0.00026889,2]
[364828844,1749263441556,-1584.79161413,0.00026889,2]
[364828846,1749263441566,-1584.79161413,0.00026889,2]
[364828848,1749263441576,-1584.79161413,0.00026889,2]
[364828850,1749263441586,-1584.79161413,0.00026889,2]
[364828852,1749263441595,-1584.79161413,0.00026889,2]
[364828854,1749263441605,-1584.79161413,0.00026889,2]
[364828856,1749263441615,-1584.79161413,0.00026889,2]
[364828858,1749263441624,-1584.79161413,0.00026889,2]
[364828860,1749263441634,-1528.19191363,0.00026889,2]
[364828862,1749263441644,-1528.19191363,0.00026889,2]
[364828864,1749263441654,-1528.19191363,0.00026889,2]
[364828866,1749263441663,-1528.19191363,0.00026889,2]
[364828868,1749263441673,-1528.19191363,0.00026889,2]
[364828870,1749263441682,-1528.19191363,0.00026889,2]
[364828872,1749263441692,-1528.19191363,0.00026889,2]
[364828874,1749263441701,-1528.19191363,0.00026889,2]
[364828876,1749263441711,-1528.19191363,0.00026889,2]
[364828878,1749263441720,-1528.19191363,0.00026889,2]
[364828880,1749263441730,-1528.19191363,0.00026889,2]
[364828882,1749263441742,-1528.19191363,0.00026889,2]
[364828884,1749263441752,-1528.19191363,0.00026889,2]
[364828886,1749263441761,-1528.19191363,0.00026889,2]
[364828888,1749263441770,-500.0,0.00026889,2]
[364828890,1749263441779,-442.75099707,0.00026889,2]
[364828892,1749263441789,-245.28441171,0.00026889,2]
[364828894,1749263441798,-291.21210481,0.00026889,2]
[364828896,1749263441808,-245.64101896,0.00026889,2]
[364828898,1749263441818,-66268.7285478,0.0002689,2]
[364828900,1749263441828,-1252.39902294,0.00026895,10]
[364828902,1749263441838,-16567.1821369,0.00026897,2]
[364828904,1749263441847,-500.0,0.00026897,2]
[364828906,1749263441856,-500.0,0.00026898,2]
[364828908,1749263441866,-36067.4437,0.00026898,2]
[364828910,1749263441876,-1000.0,0.00026899,2]
[364828912,1749263441885,-500.0,0.000269,2]
[364828914,1749263441895,-126146.6149,0.000269,2]
[364828916,1749263441904,-300.0,0.000269,9]
[364828918,1749263441914,-2600.0,0.000269,9]
[364828920,1749263441924,-21443.55956621,0.00026907,2]
[364828922,1749263441934,-153.39,0.00026909,2]
[364828924,1749263441944,-16567.1821369,0.00026919,2]
[364828926,1749263441954,-503.17075385,0.00026924,2]
[364828928,1749263441963,-500.0,0.00026927,2]
[364828930,1749263441973,-2930.36775798,0.00026946,2]
[364828932,1749263441983,-5000.0,0.0002695,2]
[364828934,1749263441992,-16567.1821369,0.00026952,2]
[364828936,1749263442001,-2930.36775798,0.00026952,2]
[364828938,1749263442011,-500.0,0.00026954,2]
[364828940,1749263442020,-2930.36775798,0.00026956,2]
[364828942,1749263442030,-21443.55956621,0.00026962,2]
[364828944,1749263442039,-2930.36775798,0.00026963,2]
[364828946,1749263442049,-16567.1821369,0.00026963,2]
[364828947,1749263442058,-5860.73551596,0.00026964,2]
[364828949,1749263442068,-936.95895544,0.00026969,16]
[364828951,1749263442077,-150.0,0.00026971,2]
[364828953,1749263442086,-904.07598923,0.00026971,2]
[364828955,1749263442095,-500.0,0.00026973,2]
[364828957,1749263442105,-199.76676848,0.00026973,2]
[364828959,1749263442114,-174.02092274,0.00026973,2]
[364828971,1749263442124,-409.89721347,0.00026973,2]
[364828974,1749263442231,-502.45705283,0.00026973,2]
[364828976,1749263442242,-502.2376627,0.00026973,2]
[364828978,1749263442251,-503.81048326,0.00026973,2]
[364828980,1749263442261,-521.76990781,0.00026973,2]
[364828982,1749263442271,-500.0,0.00026973,2]
[364828983,1749263442281,-500.0,0.00026973,2]
[364828985,1749263442292,-500.0,0.00026973,2]
[364828987,1749263442302,-500.0,0.00026973,2]
[364828989,1749263442312,-502.12382405,0.00026973,2]
[364828991,1749263442322,-500.0,0.00026973,2]
[364828993,1749263442331,-199.74112738,0.00026973,2]
[364828995,1749263442341,-1252.39902294,0.00026973,10]
[364828997,1749263442351,-16567.1821369,0.00026973,2]
[364828999,1749263442360,-2930.36775798,0.00026973,2]
[364829001,1749263442369,-33134.3642739,0.0002698,2]
[364829003,1749263442379,-14651.8387899,0.0002698,2]
[364829005,1749263442388,-500.0,0.00026982,2]
[364829007,1749263442398,-12124.41,0.00026983,2]
[364829009,1749263442407,-1855.77153938,0.00026989,2]
[364829011,1749263442416,-2930.36775798,0.00026989,2]
[364829013,1749263442428,-149104.639232,0.0002699,2]
[364829015,1749263442438,-84980.6649814,0.0002699,2]
[364829017,1749263442448,-153.39,0.0002699,2]
[364829019,1749263442458,-500.0,0.00026994,2]
[364829021,1749263442467,-150.0,0.00026994,2]
[364829023,1749263442477,-500.0,0.00026994,2]
[364829025,1749263442486,-500.0,0.00026994,2]
[364829027,1749263442496,-500.0,0.00026994,2]
[364829029,1749263442505,-150.0,0.00026994,2]
[364829031,1749263442515,-228072.04517319,0.00027,2]
[364829032,1749263442524,-25144.62,0.00027,2]
[364829033,1749263442533,-330.0,0.00027,7]
[364829034,1749263442545,-50069.34525973,0.00027,2]
[364829035,1749263442554,-1004.0718058,0.00027,2]
[364829036,1749263442563,-268.54453277,0.00027,2]
[364829038,1749263442573,-157.94919177,0.00027,2]
[364829039,1749263442582,-966.9458554,0.00027,2]
[364829042,1749263442592,-151.0,0.00027,7]
[364829043,1749263442602,-500.0,0.00027009,2]
[364829045,1749263442611,-150.0,0.00027013,2]
[364829047,1749263442621,-220.734717,0.00027018,7]
[364829049,1749263442631,-151.0,0.00027018,7]
[364829051,1749263442640,-151.0,0.00027018,7]
[364829053,1749263442649,-151.0,0.00027018,7]
[364829055,1749263442659,-377.632478,0.00027018,7]
[364829057,1749263442668,-377.632478,0.00027018,7]
[364829059,1749263442677,-1458.426165,0.00027018,7]
[364829061,1749263442686,-1458.426165,0.00027018,7]
[364829063,1749263442696,-151.0,0.00027018,7]
[364829065,1749263442705,-21443.55956621,0.00027018,2]
[364829066,1749263442715,-500.0,0.00027021,2]
[364829067,1749263442724,-150.0,0.00027021,2]
[364829068,1749263442739,-500.0,0.00027021,2]
[364829069,1749263442748,-500.0,0.00027021,2]
[364829070,1749263442757,-500.0,0.00027021,2]
[364829071,1749263442767,-206.02997179,0.00027021,2]
[364829072,1749263442777,-238.62601839,0.00027023,2]
[364829073,1749263442786,-150.0,0.0002703,2]
[364829074,1749263442795,-500.0,0.00027037,2]
[364829075,1749263442805,-254.88450249,0.00027049,2]
[364829076,1749263442815,-163.97218168,0.00027049,2]
[364829077,1749263442825,-500.0,0.00027049,2]
[364829078,1749263442836,-500.0,0.00027049,2]
[364829079,1749263442845,-500.0,0.00027049,2]
[364829081,1749263442854,-500.0,0.00027064,2]
[364829083,1749263442863,-21443.55956621,0.00027074,2]
[364829085,1749263442873,-500.0,0.00027076,2]
[364829087,1749263442883,-500.0,0.00027076,2]
[364829089,1749263442893,-500.0,0.00027076,2]
[364829091,1749263442903,-138033.47446843,0.0002708,2]
[364829094,1749263442912,-500.0,0.00027091,2]
[364829096,1749263442922,-150.0,0.00027094,2]
[364829098,1749263442931,-2000.0,0.000271,2]
[364829100,1749263442940,-52696.73289902,0.000271,2]
[364829101,1749263442949,-500.0,0.00027104,2]
[364829104,1749263442960,-500.0,0.00027104,2]
[364829106,1749263442970,-439.93214716,0.00027104,2]
[364829107,1749263442980,-150.0,0.00027105,2]
[364829109,1749263442989,-183.47169746,0.00027107,2]
[364829111,1749263442999,-300.0,0.00027111,10]
[364829113,1749263443009,-151.0,0.00027112,7]
[364829116,1749263443019,-151.0,0.00027112,7]
[364829117,1749263443028,-151.0,0.00027112,7]
[364829119,1749263443038,-151.0,0.00027112,7]
[364829121,1749263443048,-1639.6479,0.00027113,7]
[364829123,1749263443058,-151.0,0.00027113,7]
[364829125,1749263443067,-151.0,0.00027113,7]
[364829127,1749263443077,-151.0,0.00027113,7]
[364829129,1749263443086,-151.0,0.00027113,7]
[364829131,1749263443095,-151.0,0.00027113,7]
[364829133,1749263443105,-151.0,0.00027113,7]
[364829135,1749263443114,-151.0,0.00027113,7]
[364829137,1749263443123,-377.632478,0.00027113,7]
[364829139,1749263443132,-377.632478,0.00027113,7]
[364829141,1749263443141,-1458.426165,0.00027113,7]
[364829142,1749263443149,-1458.426165,0.00027113,7]
[364829144,1749263443159,-151.0,0.00027113,7]
[364829146,1749263443169,-539.34796335,0.00027119,2]
[364829148,1749263443179,-300.0,0.00027122,10]
[364829150,1749263443188,-300.0,0.00027122,10]
[364829152,1749263443198,-1791.0,0.00027123,30]
[364829154,1749263443208,-10934.10309202,0.00027123,2]
[364829157,1749263443218,-1639.6479,0.00027123,7]
[364829159,1749263443227,-153.0,0.00027123,2]
[364829161,1749263443238,-153.0,0.00027123,2]
[364829163,1749263443248,-153.0,0.00027123,2]
[364829165,1749263443258,-153.0,0.00027123,2]
[364829167,1749263443267,-153.0,0.00027123,2]
[364829169,1749263443276,-153.0,0.00027123,2]
[364829171,1749263443286,-153.0,0.00027123,2]
[364829173,1749263443295,-153.0,0.00027123,2]
[364829175,1749263443304,-153.0,0.00027123,2]
[364829177,1749263443315,-153.0,0.00027123,2]
[364829179,1749263443324,-153.0,0.00027123,2]
[364829181,1749263443334,-153.0,0.00027123,2]
[364829183,1749263443344,-153.0,0.00027123,2]
[364829185,1749263443353,-153.0,0.00027123,2]
[364829187,1749263443363,-153.0,0.00027123,2]
[364829189,1749263443372,-153.0,0.00027123,2]
[364829191,1749263443381,-153.0,0.00027123,2]
[364829193,1749263443390,-153.0,0.00027123,2]
[364829195,1749263443400,-153.0,0.00027123,2]
[364829197,1749263443409,-153.0,0.00027123,2]
[364829199,1749263443418,-153.0,0.00027123,2]
[364829201,1749263443427,-153.0,0.00027123,2]
[364829203,1749263443436,-153.0,0.00027123,2]
[364829204,1749263443445,-153.0,0.00027123,2]
[364829206,1749263443454,-153.0,0.00027123,2]
[364829208,1749263443464,-153.0,0.00027123,2]
[364829210,1749263443473,-153.0,0.00027123,2]
[364829212,1749263443482,-153.0,0.00027123,2]
[364829214,1749263443492,-153.0,0.00027123,2]
[364829216,1749263443502,-153.0,0.00027123,2]
[364829218,1749263443511,-153.0,0.00027123,2]
[364829220,1749263443521,-153.0,0.00027123,2]
[364829222,1749263443530,-153.0,0.00027123,2]
[364829224,1749263443540,-153.0,0.00027123,2]
[364829226,1749263443549,-153.0,0.00027123,2]
[364829228,1749263443558,-153.0,0.00027123,2]
[364829230,1749263443568,-153.0,0.00027123,2]
[364829232,1749263443577,-153.0,0.00027123,2]
[364829234,1749263443588,-153.0,0.00027123,2]
[364829236,1749263443597,-153.0,0.00027123,2]
[364829238,1749263443607,-153.0,0.00027123,2]
[364829240,1749263443615,-153.0,0.00027123,2]
[364829242,1749263443625,-153.0,0.00027123,2]
[364829243,1749263443635,-153.0,0.00027123,2]
[364829244,1749263443644,-153.0,0.00027123,2]
[364829245,1749263443654,-153.0,0.00027123,2]
[364829246,1749263443663,-153.0,0.00027123,2]
[364829247,1749263443672,-153.0,0.00027123,2]
[364829249,1749263443681,-153.0,0.00027123,2]
[364829250,1749263443690,-153.0,0.00027123,2]
[364829252,1749263443699,-153.0,0.00027123,2]
[364829254,1749263443709,-153.0,0.00027123,2]
[364829256,1749263443718,-153.0,0.00027123,2]
[364829258,1749263443726,-153.0,0.00027123,2]
[364829260,1749263443737,-153.0,0.00027123,2]
[364829261,1749263443748,-153.0,0.00027123,2]
[364829262,1749263443757,-153.0,0.00027123,2]
[364829263,1749263443767,-153.0,0.00027123,2]
[364829264,1749263443777,-153.0,0.00027123,2]
[364829265,1749263443787,-153.0,0.00027123,2]
[364829267,1749263443796,-153.0,0.00027123,2]
[364829269,1749263443806,-153.0,0.00027123,2]
[364829271,1749263443816,-153.0,0.00027123,2]
[364829273,1749263443825,-153.0,0.00027123,2]
[364829275,1749263443834,-153.0,0.00027123,2]
[364829277,1749263443844,-153.0,0.00027123,2]
[364829280,1749263443853,-153.0,0.00027123,2]
[364829282,1749263443863,-153.0,0.00027123,2]
[364829284,1749263443872,-153.0,0.00027123,2]
[364829286,1749263443881,-153.0,0.00027123,2]
[364829288,1749263443890,-153.0,0.00027123,2]
[364829290,1749263443899,-153.0,0.00027123,2]
[364829292,1749263443909,-153.0,0.00027123,2]
[364829294,1749263443918,-153.0,0.00027123,2]
[364829296,1749263443927,-153.0,0.00027123,2]
[364829298,1749263443936,-153.0,0.00027123,2]
[364829300,1749263443946,-153.0,0.00027123,2]
[364829302,1749263443955,-153.0,0.00027123,2]
[364829303,1749263443964,-153.0,0.00027123,2]
[364829305,1749263443974,-153.0,0.00027123,2]
[364829307,1749263443983,-153.0,0.00027123,2]
[364829309,1749263443993,-153.0,0.00027123,2]
[364829311,1749263444002,-153.0,0.00027123,2]
[364829313,1749263444011,-153.0,0.00027123,2]
[364829315,1749263444021,-153.0,0.00027123,2]
[364829317,1749263444030,-153.0,0.00027123,2]
[364829319,1749263444039,-153.0,0.00027123,2]
[364829321,1749263444049,-153.0,0.00027123,2]
[364829323,1749263444057,-153.0,0.00027123,2]
[364829325,1749263444067,-153.0,0.00027123,2]
[364829326,1749263444083,-153.0,0.00027123,2]
[364829328,1749263444093,-153.0,0.00027123,2]
[364829330,1749263444104,-153.0,0.00027123,2]
[364829332,1749263444113,-153.0,0.00027123,2]
[364829334,1749263444123,-153.0,0.00027123,2]
[364829336,1749263444132,-153.0,0.00027123,2]
[364829338,1749263444142,-153.0,0.00027123,2]
[364829340,1749263444153,-153.0,0.00027123,2]
[364829342,1749263444163,-153.0,0.00027123,2]
[364829344,1749263444172,-153.0,0.00027123,2]
[364829346,1749263444181,-153.0,0.00027123,2]
[364829348,1749263444191,-153.0,0.00027123,2]
[364829350,1749263444201,-153.0,0.00027123,2]
[364829352,1749263444210,-153.0,0.00027123,2]
[364829354,1749263444219,-153.0,0.00027123,2]
[364829356,1749263444228,-153.0,0.00027123,2]
[364829358,1749263444237,-153.0,0.00027123,2]
[364829360,1749263444246,-153.0,0.00027123,2]
[364829362,1749263444255,-153.0,0.00027123,2]
[364829364,1749263444264,-153.0,0.00027123,2]
[364829366,1749263444273,-153.0,0.00027123,2]
[364829367,1749263444282,-153.0,0.00027123,2]
[364829370,1749263444293,-153.0,0.00027123,2]
[364829371,1749263444302,-153.0,0.00027123,2]
[364829373,1749263444312,-153.0,0.00027123,2]
[364829375,1749263444321,-153.0,0.00027123,2]
[364829377,1749263444331,-153.0,0.00027123,2]
[364829379,1749263444341,-153.0,0.00027123,2]
[364829381,1749263444350,-153.0,0.00027123,2]
[364829383,1749263444359,-153.0,0.00027123,2]
[364829385,1749263444368,-153.0,0.00027123,2]
[364829387,1749263444377,-153.0,0.00027123,2]
[364829389,1749263444387,-153.0,0.00027123,2]
[364829391,1749263444396,-153.0,0.00027123,2]
[364829393,1749263444405,-153.0,0.00027123,2]
[364829395,1749263444415,-153.0,0.00027123,2]
[364829397,1749263444424,-153.0,0.00027123,2]
[364829399,1749263444433,-153.0,0.00027123,2]
[364829401,1749263444442,-153.0,0.00027123,2]
[364829403,1749263444452,-153.0,0.00027123,2]
[364829405,1749263444461,-153.0,0.00027123,2]
[364829407,1749263444470,-153.0,0.00027123,2]
[364829409,1749263444479,-153.0,0.00027123,2]
[364829411,1749263444490,-153.0,0.00027123,2]
[364829413,1749263444499,-3571.42,0.00027123,2]
[364829415,1749263444508,-1000.0,0.00027123,3]
[364829416,1749263444518,-1000.0,0.00027123,3]
[364829418,1749263444527,-1026.0,0.00027123,3]
[364829420,1749263444537,-1000.0,0.00027123,3]
[364829422,1749263444548,-1000.0,0.00027123,3]
[364829424,1749263444557,-1000.0,0.00027123,3]
[364829426,1749263444567,-1000.0,0.00027123,3]
[364829428,1749263444576,-150.0,0.00027125,2]
[364829430,1749263444585,-150.0,0.00027125,2]
[364829432,1749263444596,-150.0,0.00027127,2]
[364829434,1749263444605,-150.0,0.00027127,2]
[364829436,1749263444614,-21443.55956621,0.0002713,2]
[364829438,1749263444623,-150.0,0.0002713,2]
[364829440,1749263444632,-500.0,0.00027131,2]
[364829442,1749263444641,-500.0,0.00027131,2]
[364829444,1749263444650,-150.0,0.00027131,2]
[364829446,1749263444660,-150.0,0.00027135,2]
[364829448,1749263444669,-150.0,0.00027137,2]
[364829450,1749263444678,-150.0,0.00027139,2]
[364829452,1749263444687,-150.0,0.0002714,2]
[364829454,1749263444696,-150.0,0.00027142,2]
[364829455,1749263444705,-150.0,0.0002715,2]
[364829457,1749263444714,-150.0,0.00027158,2]
[364829459,1749263444724,-354.46494929,0.00027158,2]
[364829461,1749263444735,-500.0,0.00027158,2]
[364829463,1749263444746,-150.0,0.00027161,2]
[364829465,1749263444756,-200.0,0.00027162,2]
[364829467,1749263444765,-150.0,0.00027166,2]
[364829469,1749263444774,-150.0,0.00027166,2]
[364829471,1749263444784,-150.0,0.00027168,2]
[364829473,1749263444793,-150.0,0.00027168,2]
[364829475,1749263444802,-378.21065034,0.0002717,2]
[364829477,1749263444813,-150.0,0.00027171,2]
[364829480,1749263444824,-159.77171705,0.00027173,2]
[364829481,1749263444833,-504.88878207,0.00027173,2]
[364829483,1749263444843,-505.26649559,0.00027173,2]
[364829485,1749263444853,-521.90253048,0.00027173,2]
[364829487,1749263444862,-502.19789294,0.00027173,2]
[364829489,1749263444871,-150.0,0.00027177,2]
[364829491,1749263444880,-150.0,0.00027178,2]
[364829493,1749263444890,-544.0,0.00027178,2]
[364829495,1749263444900,-150.0,0.00027181,2]
[364829497,1749263444911,-21443.55956621,0.00027185,2]
[364829499,1749263444920,-500.0,0.00027186,2]
[364829501,1749263444932,-150.0,0.00027187,2]
[364829503,1749263444943,-150.0,0.00027196,2]
[364829505,1749263444959,-150.0,0.00027197,2]
[364829507,1749263444967,-151.0,0.00027197,5]
[364829509,1749263444977,-150.0,0.00027199,2]
[364829511,1749263444987,-150.0,0.00027201,2]
[364829513,1749263444997,-150.0,0.00027202,2]
[364829515,1749263445006,-164.46,0.00027206,2]
[364829517,1749263445015,-150.0,0.00027212,2]
[364829519,1749263445025,-150.0,0.00027213,2]
[364829521,1749263445035,-500.0,0.00027213,2]
[364829523,1749263445045,-150.0,0.00027218,2]
[364829525,1749263445055,-1032.51220603,0.0002722,2]
[364829527,1749263445065,-150.0,0.0002722,2]
[364829528,1749263445074,-151.28222684,0.00027223,2]
[364829529,1749263445085,-150.0,0.00027225,2]
[364829530,1749263445094,-150.0,0.00027226,2]
[364829531,1749263445103,-150.0,0.00027227,2]
[364829532,1749263445113,-150.0,0.00027228,2]
[364829533,1749263445122,-150.0,0.00027231,2]
[364829534,1749263445131,-150.0,0.00027231,2]
[364829535,1749263445141,-150.0,0.00027234,2]
[364829536,1749263445151,-150.0,0.0002724,2]
[364829537,1749263445160,-13815.40927508,0.0002724,2]
[364829538,1749263445170,-161.13528332,0.00027241,2]
[364829539,1749263445179,-1088.780396,0.00027241,2]
[364829540,1749263445188,-17653.96411512,0.00027241,2]
[364829541,1749263445199,-163.07524585,0.00027241,2]
[364829542,1749263445208,-3665.00693311,0.00027241,2]
[364829543,1749263445217,-21443.55956621,0.00027241,2]
[364829544,1749263445227,-150.0,0.00027244,2]
[364829545,1749263445236,-150.0,0.00027245,2]
[364829546,1749263445246,-150.0,0.00027247,2]
[364829547,1749263445255,-784.63370688,0.0002725,2]
[364829548,1749263445265,-150.0,0.00027256,2]
[364829549,1749263445274,-150.0,0.00027257,2]
[364829550,1749263445284,-150.0,0.00027257,2]
[364829551,1749263445293,-196.14488394,0.0002727,5]
[364829552,1749263445302,-150.0,0.00027272,2]
[364829553,1749263445311,-150.0,0.00027273,2]
[364829554,1749263445321,-150.0,0.00027273,2]
[364829555,1749263445330,-300.0,0.00027277,2]
[364829556,1749263445340,-150.0,0.00027277,2]
[364829557,1749263445350,-215.0738,0.00027277,2]
[364829558,1749263445359,-156.587,0.00027277,2]
[364829559,1749263445369,-150.0,0.00027278,2]
[364829560,1749263445379,-150.0,0.00027284,2]
[364829561,1749263445389,-150.0,0.00027286,2]
[364829562,1749263445398,-150.0,0.00027286,2]
[364829563,1749263445409,-151.0,0.00027287,7]
[364829564,1749263445418,-151.0,0.00027287,7]
[364829565,1749263445428,-307.314938,0.00027287,7]
[364829566,1749263445437,-307.314938,0.00027287,7]
[364829567,1749263445449,-539.442297,0.00027287,7]
[364829568,1749263445458,-539.442297,0.00027287,7]
[364829569,1749263445468,-151.0,0.00027287,7]
[364829570,1749263445477,-151.0,0.00027287,7]
[364829571,1749263445487,-763.800367,0.00027287,7]
[364829572,1749263445497,-763.800367,0.00027287,7]
[364829573,1749263445506,-150.0,0.00027296,2]
[364829574,1749263445516,-16144.8847282,0.00027297,2]
[364829575,1749263445527,-21443.55956621,0.00027297,2]
[364829576,1749263445537,-150.0,0.000273,2]
[364829577,1749263445547,-210.73,0.000273,2]
[364829578,1749263445557,-159.0,0.000273,16]
[364829579,1749263445566,-112346.4671226,0.000273,2]
[364829580,1749263445576,-17565.56,0.000273,2]
[364829581,1749263445586,-151.0,0.000273,7]
[364829582,1749263445596,-150.0,0.00027301,2]
[364829583,1749263445606,-152.0,0.00027303,3]
[364829584,1749263445616,-152.0,0.00027303,3]
[364829585,1749263445626,-161.0,0.00027303,3]
[364829586,1749263445635,-152.0,0.00027303,3]
[364829587,1749263445644,-254.24465194,0.00027303,3]
[364829588,1749263445654,-152.0,0.00027303,3]
[364829589,1749263445664,-152.0,0.00027303,3]
[364829590,1749263445673,-152.0,0.00027303,3]
[364829591,1749263445683,-152.0,0.00027303,3]
[364829592,1749263445693,-153.32302988,0.00027303,3]
[364829593,1749263445703,-151.0,0.00027303,3]
[364829594,1749263445713,-151.0,0.00027303,3]
[364829595,1749263445723,-151.0,0.00027303,3]
[364829596,1749263445733,-151.0,0.00027303,3]
[364829597,1749263445746,-151.0,0.00027303,3]
[364829598,1749263445755,-151.0,0.00027303,3]
[364829599,1749263445764,-151.0,0.00027303,3]
[364829600,1749263445773,-294.30268943,0.00027303,3]
[364829601,1749263445783,-190.71618356,0.00027309,16]
[364829602,1749263445792,-150.0,0.00027309,2]
[364829603,1749263445802,-150.0,0.0002731,2]
[364829604,1749263445811,-150.0,0.00027314,2]
[364829605,1749263445822,-150.0,0.00027314,2]
[364829606,1749263445832,-163.0,0.00027315,2]
[364829607,1749263445841,-151.0,0.00027321,7]
[364829608,1749263445850,-151.0,0.00027321,7]
[364829609,1749263445860,-151.0,0.00027321,7]
[364829610,1749263445869,-202.192633,0.00027321,7]
[364829611,1749263445879,-202.192633,0.00027321,7]
[364829612,1749263445889,-151.0,0.00027321,7]
[364829613,1749263445898,-178.839671,0.00027321,7]
[364829614,1749263445908,-184.547478,0.00027321,7]
[364829615,1749263445920,-184.547478,0.00027321,7]
[364829616,1749263445931,-151.0,0.00027321,7]
[364829617,1749263445940,-151.0,0.00027321,7]